[Event "Early-Titled-Tuesday-Blitz-February-20-2024"]
[Site "Chess.com"]
[Date "2024.02.20"]
[Round "11"]
[White "DvaHrasta"]
[Black "ChEsper99"]
[Result "1-0"]
[WhiteElo "2524"]
[BlackElo "2238"]
[TimeControl "180+1"]
[EndTime "10:08:15 PST"]
[Termination "DvaHrasta won on time"]

1. c4 {[%clk 0:03:00.9]} 1... e5 {[%clk 0:02:54.5]} 2. g3 {[%clk 0:03:00.9]}
2... Nf6 {[%clk 0:02:43.5]} 3. Bg2 {[%clk 0:03:00.7]} 3... d5 {[%clk 0:02:44.1]}
4. cxd5 {[%clk 0:03:00.1]} 4... Nxd5 {[%clk 0:02:45]} 5. Nf3 {[%clk 0:03:00.1]}
5... Nc6 {[%clk 0:02:36.2]} 6. O-O {[%clk 0:02:59.8]} 6... Be7 {[%clk
0:02:31.5]} 7. d4 {[%clk 0:02:58.6]} 7... exd4 {[%clk 0:02:14.9]} 8. Nxd4 {[%clk
0:02:57.9]} 8... Nxd4 {[%clk 0:02:15.2]} 9. Qxd4 {[%clk 0:02:58.1]} 9... Nf6
{[%clk 0:01:59.7]} 10. Qa4+ {[%clk 0:02:57.7]} 10... c6 {[%clk 0:01:54.5]} 11.
Rd1 {[%clk 0:02:56.5]} 11... Qb6 {[%clk 0:01:49.5]} 12. Nd2 {[%clk 0:02:55.7]}
12... O-O {[%clk 0:01:21.7]} 13. Nc4 {[%clk 0:02:55.2]} 13... Qb4 {[%clk
0:01:21.7]} 14. Qxb4 {[%clk 0:02:53.7]} 14... Bxb4 {[%clk 0:01:22.6]} 15. Bg5
{[%clk 0:02:52.3]} 15... Be6 {[%clk 0:01:20.7]} 16. Rac1 {[%clk 0:02:45.7]}
16... Rad8 {[%clk 0:01:05.7]} 17. Rxd8 {[%clk 0:02:35.3]} 17... Rxd8 {[%clk
0:01:06.6]} 18. Bxf6 {[%clk 0:02:26]} 18... gxf6 {[%clk 0:01:06.4]} 19. a3
{[%clk 0:02:25.1]} 19... Bd2 {[%clk 0:00:46.2]} 20. Rc2 {[%clk 0:02:12.8]} 20...
Bh6 {[%clk 0:00:45.3]} 21. f4 {[%clk 0:01:54.2]} 21... Bf8 {[%clk 0:00:21]} 22.
Na5 {[%clk 0:01:44.1]} 22... Rd7 {[%clk 0:00:11.9]} 23. Be4 {[%clk 0:01:35.7]}
23... f5 {[%clk 0:00:10.7]} 24. Bf3 {[%clk 0:01:27.3]} 24... Bd6 {[%clk
0:00:08.3]} 25. Kg2 {[%clk 0:01:21.7]} 25... Bc7 {[%clk 0:00:08.4]} 26. Nxb7
{[%clk 0:01:19.6]} 26... Bb6 {[%clk 0:00:02.7]} 27. Nc5 {[%clk 0:00:51.8]} 27...
Bxc5 {[%clk 0:00:02.9]} 28. Rxc5 {[%clk 0:00:52]} 28... Rd2 {[%clk 0:00:03.1]}
29. Rxc6 {[%clk 0:00:47.7]} 29... Bb3 {[%clk 0:00:01.5]} 30. Ra6 {[%clk
0:00:44]} 30... Rxb2 {[%clk 0:00:01.2]} 31. Rxa7 {[%clk 0:00:43.4]} 1-0

[Event "Early-Titled-Tuesday-Blitz-February-20-2024"]
[Site "Chess.com"]
[Date "2024.02.20"]
[Round "11"]
[White "FARIZA2018"]
[Black "inagreV"]
[Result "0-1"]
[WhiteElo "2582"]
[BlackElo "2418"]
[TimeControl "180+1"]
[EndTime "10:08:27 PST"]
[Termination "inagreV won by resignation"]

1. e4 {[%clk 0:03:00.9]} 1... c5 {[%clk 0:02:58.9]} 2. Nf3 {[%clk 0:03:01]} 2...
Nc6 {[%clk 0:02:59]} 3. d4 {[%clk 0:03:01.2]} 3... cxd4 {[%clk 0:02:59.1]} 4.
Nxd4 {[%clk 0:03:01.8]} 4... Nf6 {[%clk 0:02:58.9]} 5. Nc3 {[%clk 0:03:01.7]}
5... d6 {[%clk 0:02:59.3]} 6. Bg5 {[%clk 0:03:01.4]} 6... e6 {[%clk 0:02:59.4]}
7. Qd2 {[%clk 0:03:01.4]} 7... a6 {[%clk 0:02:59.2]} 8. O-O-O {[%clk 0:03:01.6]}
8... Bd7 {[%clk 0:02:59.3]} 9. f3 {[%clk 0:03:02]} 9... Nxd4 {[%clk 0:02:57.1]}
10. Qxd4 {[%clk 0:03:01.9]} 10... Be7 {[%clk 0:02:57.5]} 11. h4 {[%clk
0:03:02.3]} 11... Qc7 {[%clk 0:02:53.5]} 12. Kb1 {[%clk 0:02:58.5]} 12... b5
{[%clk 0:02:52.3]} 13. Bd3 {[%clk 0:02:50]} 13... O-O {[%clk 0:02:38.2]} 14. g4
{[%clk 0:02:46.8]} 14... b4 {[%clk 0:02:34.8]} 15. Ne2 {[%clk 0:02:46.8]} 15...
a5 {[%clk 0:02:32]} 16. h5 {[%clk 0:02:41.7]} 16... e5 {[%clk 0:02:11.4]} 17.
Qg1 {[%clk 0:02:13.3]} 17... Be6 {[%clk 0:01:52.6]} 18. Ng3 {[%clk 0:01:54.2]}
18... a4 {[%clk 0:01:51.8]} 19. Nf5 {[%clk 0:01:54.2]} 19... Bxf5 {[%clk
0:01:33.7]} 20. gxf5 {[%clk 0:01:54]} 20... Kh8 {[%clk 0:01:33.8]} 21. h6 {[%clk
0:01:53.9]} 21... gxh6 {[%clk 0:01:27.1]} 22. Rxh6 {[%clk 0:01:47.9]} 22... Ng8
{[%clk 0:01:19.7]} 23. Bxe7 {[%clk 0:01:29.9]} 23... Qxe7 {[%clk 0:01:18.2]} 24.
Rxh7+ {[%clk 0:01:23.9]} 24... Kxh7 {[%clk 0:01:17.7]} 25. Qh2+ {[%clk
0:01:07.3]} 25... Nh6 {[%clk 0:01:16.8]} 26. f4 {[%clk 0:00:52.7]} 26... Qf6
{[%clk 0:01:13.5]} 27. Be2 {[%clk 0:00:44.1]} 27... a3 {[%clk 0:01:09.5]} 28.
Bh5 {[%clk 0:00:43.1]} 28... exf4 {[%clk 0:01:06.1]} 29. c3 {[%clk 0:00:33]}
29... bxc3 {[%clk 0:01:02.5]} 30. Qxf4 {[%clk 0:00:20.9]} 30... c2+ {[%clk
0:01:01.2]} 31. Kxc2 {[%clk 0:00:21]} 31... Qxb2+ {[%clk 0:01:01]} 32. Kd3
{[%clk 0:00:21.5]} 32... Ra4 {[%clk 0:00:52.8]} 33. Bg6+ {[%clk 0:00:17.7]}
33... fxg6 {[%clk 0:00:49.3]} 34. fxg6+ {[%clk 0:00:17.3]} 34... Kg7 {[%clk
0:00:48.6]} 35. Qxd6 {[%clk 0:00:17.1]} 35... Rd4+ {[%clk 0:00:46]} 36. Qxd4+
{[%clk 0:00:17]} 36... Qxd4+ {[%clk 0:00:46.9]} 37. Kxd4 {[%clk 0:00:16.6]}
37... Rd8+ {[%clk 0:00:47.5]} 0-1

[Event "Early-Titled-Tuesday-Blitz-February-20-2024"]
[Site "Chess.com"]
[Date "2024.02.20"]
[Round "11"]
[White "koncheto"]
[Black "Goffredo_Fofi"]
[Result "0-1"]
[WhiteElo "2418"]
[BlackElo "2539"]
[TimeControl "180+1"]
[EndTime "10:08:27 PST"]
[Termination "Goffredo_Fofi won by resignation"]

1. e4 {[%clk 0:03:00.9]} 1... g6 {[%clk 0:03:00.9]} 2. d4 {[%clk 0:02:59.8]}
2... Bg7 {[%clk 0:03:01.8]} 3. c3 {[%clk 0:03:00.4]} 3... c6 {[%clk 0:03:00.8]}
4. Bd3 {[%clk 0:02:59.8]} 4... d5 {[%clk 0:03:01.2]} 5. e5 {[%clk 0:02:59.6]}
5... f6 {[%clk 0:02:59.7]} 6. f4 {[%clk 0:02:58.5]} 6... Nh6 {[%clk 0:02:58]} 7.
Nf3 {[%clk 0:02:58.2]} 7... c5 {[%clk 0:02:47.7]} 8. O-O {[%clk 0:02:55.6]} 8...
cxd4 {[%clk 0:02:46.9]} 9. cxd4 {[%clk 0:02:55.6]} 9... Nc6 {[%clk 0:02:47]} 10.
Be3 {[%clk 0:02:53.3]} 10... O-O {[%clk 0:02:45.1]} 11. h3 {[%clk 0:02:48.8]}
11... Bf5 {[%clk 0:02:42]} 12. Nc3 {[%clk 0:02:48.3]} 12... Bxd3 {[%clk
0:02:36.7]} 13. Qxd3 {[%clk 0:02:49.2]} 13... Nf5 {[%clk 0:02:36.6]} 14. Bf2
{[%clk 0:02:46.4]} 14... e6 {[%clk 0:02:30.7]} 15. exf6 {[%clk 0:02:44.7]} 15...
Bxf6 {[%clk 0:02:30.6]} 16. Rfe1 {[%clk 0:02:45.1]} 16... Qd7 {[%clk 0:02:21.7]}
17. Re2 {[%clk 0:02:34.9]} 17... Rae8 {[%clk 0:02:16.3]} 18. a3 {[%clk
0:02:31.5]} 18... Na5 {[%clk 0:01:35]} 19. Rae1 {[%clk 0:02:24.2]} 19... Nc4
{[%clk 0:01:31.7]} 20. g4 {[%clk 0:02:23.8]} 20... Nfd6 {[%clk 0:01:25.5]} 21.
Ne5 {[%clk 0:02:23.1]} 21... Bxe5 {[%clk 0:01:24]} 22. fxe5 {[%clk 0:02:22.6]}
22... Nc8 {[%clk 0:01:05.7]} 23. Ne4 {[%clk 0:02:14.8]} 23... Nxb2 {[%clk
0:00:48.6]} 24. Rxb2 {[%clk 0:02:12.2]} 24... dxe4 {[%clk 0:00:48.7]} 25. Qxe4
{[%clk 0:02:09.5]} 25... Nb6 {[%clk 0:00:48.2]} 26. h4 {[%clk 0:01:48.1]} 26...
Nd5 {[%clk 0:00:44.4]} 27. h5 {[%clk 0:01:46.5]} 27... Rf4 {[%clk 0:00:42.6]}
28. Qg2 {[%clk 0:01:43]} 28... gxh5 {[%clk 0:00:42.5]} 29. gxh5+ {[%clk
0:01:39.7]} 29... Kh8 {[%clk 0:00:42.7]} 30. Kh2 {[%clk 0:01:33.2]} 30... Qf7
{[%clk 0:00:40.6]} 31. Bg3 {[%clk 0:01:09.7]} 31... Qxh5+ {[%clk 0:00:22.8]} 32.
Qh3 {[%clk 0:01:03.6]} 32... Qxh3+ {[%clk 0:00:20.2]} 33. Kxh3 {[%clk
0:01:04.5]} 33... Rf7 {[%clk 0:00:20.8]} 34. Rc2 {[%clk 0:01:01]} 34... Rg8
{[%clk 0:00:19.4]} 35. Bh4 {[%clk 0:00:52.6]} 35... Rf3+ {[%clk 0:00:17.5]} 36.
Kh2 {[%clk 0:00:53]} 36... Rg4 {[%clk 0:00:16.7]} 37. Bf2 {[%clk 0:00:44.8]}
37... Nf4 {[%clk 0:00:14.3]} 38. Rc8+ {[%clk 0:00:40.2]} 38... Kg7 {[%clk
0:00:13.9]} 0-1

[Event "Early-Titled-Tuesday-Blitz-February-20-2024"]
[Site "Chess.com"]
[Date "2024.02.20"]
[Round "11"]
[White "Grischuk"]
[Black "Makswolf200817"]
[Result "1-0"]
[WhiteElo "3070"]
[BlackElo "2757"]
[TimeControl "180+1"]
[EndTime "10:08:28 PST"]
[Termination "Grischuk won by resignation"]

1. d4 {[%clk 0:03:00.9]} 1... d5 {[%clk 0:02:59.5]} 2. Nf3 {[%clk 0:03:00.5]}
2... Nf6 {[%clk 0:02:59.5]} 3. Bg5 {[%clk 0:03:00.2]} 3... Nbd7 {[%clk
0:02:54.6]} 4. e3 {[%clk 0:02:59.3]} 4... h6 {[%clk 0:02:54.4]} 5. Bf4 {[%clk
0:02:51.1]} 5... e6 {[%clk 0:02:41.4]} 6. Nbd2 {[%clk 0:02:44.7]} 6... Bd6
{[%clk 0:02:29.1]} 7. Bd3 {[%clk 0:02:44]} 7... O-O {[%clk 0:02:22.8]} 8. Ne5
{[%clk 0:02:40.8]} 8... Re8 {[%clk 0:01:56.5]} 9. h4 {[%clk 0:02:37]} 9... h5
{[%clk 0:01:31.6]} 10. Ndf3 {[%clk 0:02:08.6]} 10... Ng4 {[%clk 0:01:10]} 11.
Nxg4 {[%clk 0:01:54.9]} 11... Bxf4 {[%clk 0:01:07.4]} 12. exf4 {[%clk
0:01:52.1]} 12... hxg4 {[%clk 0:01:08]} 13. Ne5 {[%clk 0:01:50.8]} 13... Nxe5
{[%clk 0:00:59.3]} 14. fxe5 {[%clk 0:01:21]} 14... f5 {[%clk 0:00:56.1]} 15. f3
{[%clk 0:01:21.5]} 15... gxf3 {[%clk 0:00:40.1]} 16. Qxf3 {[%clk 0:01:22.4]}
16... c5 {[%clk 0:00:39.9]} 17. dxc5 {[%clk 0:01:12.1]} 17... Qc7 {[%clk
0:00:36]} 18. Qf4 {[%clk 0:01:08.8]} 18... Qxc5 {[%clk 0:00:34]} 19. O-O-O
{[%clk 0:01:08.5]} 19... Bd7 {[%clk 0:00:32.7]} 20. g4 {[%clk 0:00:52.5]} 20...
fxg4 {[%clk 0:00:25.4]} 21. Kb1 {[%clk 0:00:43.6]} 21... Re7 {[%clk 0:00:14.7]}
22. h5 {[%clk 0:00:38.4]} 22... Bb5 {[%clk 0:00:12.5]} 23. Bxb5 {[%clk
0:00:32.3]} 23... Qxb5 {[%clk 0:00:12.7]} 24. h6 {[%clk 0:00:33]} 24... Qe2
{[%clk 0:00:07.3]} 25. Rdf1 {[%clk 0:00:17.5]} 25... Rc7 {[%clk 0:00:06.6]} 26.
h7+ {[%clk 0:00:16.3]} 26... Kh8 {[%clk 0:00:06.9]} 27. Qf8+ {[%clk 0:00:17]}
1-0

[Event "Early-Titled-Tuesday-Blitz-February-20-2024"]
[Site "Chess.com"]
[Date "2024.02.20"]
[Round "11"]
[White "Actuary44"]
[Black "Aygehovit1992"]
[Result "0-1"]
[WhiteElo "2509"]
[BlackElo "2677"]
[TimeControl "180+1"]
[EndTime "10:08:28 PST"]
[Termination "Aygehovit1992 won by resignation"]

1. e4 {[%clk 0:03:00.9]} 1... c5 {[%clk 0:02:58.2]} 2. d4 {[%clk 0:03:01]} 2...
cxd4 {[%clk 0:02:58.3]} 3. c3 {[%clk 0:03:01.5]} 3... dxc3 {[%clk 0:02:59]} 4.
Nxc3 {[%clk 0:03:02.3]} 4... e6 {[%clk 0:02:56.9]} 5. f4 {[%clk 0:03:02.9]} 5...
Bc5 {[%clk 0:02:55.1]} 6. Nf3 {[%clk 0:03:03.2]} 6... Nf6 {[%clk 0:02:55.2]} 7.
Bd3 {[%clk 0:03:01.4]} 7... d5 {[%clk 0:02:28]} 8. e5 {[%clk 0:03:01.5]} 8...
Ng4 {[%clk 0:02:27.4]} 9. Rf1 {[%clk 0:02:59.7]} 9... Nxh2 {[%clk 0:02:23.7]}
10. Rh1 {[%clk 0:02:51.8]} 10... Nxf3+ {[%clk 0:02:20]} 11. Qxf3 {[%clk
0:02:52.7]} 11... Nc6 {[%clk 0:02:19.6]} 12. Bd2 {[%clk 0:02:50.5]} 12... Nb4
{[%clk 0:02:16.4]} 13. Bb1 {[%clk 0:02:41.5]} 13... g6 {[%clk 0:02:09.8]} 14. a3
{[%clk 0:02:37.5]} 14... Nc6 {[%clk 0:02:10.1]} 15. b4 {[%clk 0:02:28.6]} 15...
Be7 {[%clk 0:02:06.7]} 16. Qg3 {[%clk 0:02:21.3]} 16... a5 {[%clk 0:01:59.3]}
17. b5 {[%clk 0:02:14.6]} 17... Nd4 {[%clk 0:01:58.3]} 18. Bxg6 {[%clk
0:02:11.2]} 18... fxg6 {[%clk 0:01:55.6]} 19. O-O-O {[%clk 0:02:02.9]} 19...
Bxa3+ {[%clk 0:01:53.4]} 20. Kb1 {[%clk 0:02:02.5]} 20... Qe7 {[%clk 0:01:52]}
21. Na4 {[%clk 0:01:56.4]} 21... Kf7 {[%clk 0:01:24.6]} 22. f5 {[%clk
0:01:46.1]} 22... Nxf5 {[%clk 0:01:19.3]} 23. Qd3 {[%clk 0:01:44.2]} 23... Bb4
{[%clk 0:01:15.9]} 24. Bc1 {[%clk 0:01:36]} 24... Bd7 {[%clk 0:01:02.5]} 25. g4
{[%clk 0:01:34.8]} 25... Ng7 {[%clk 0:01:02.5]} 26. Rdf1+ {[%clk 0:01:26.1]}
26... Kg8 {[%clk 0:01:02.7]} 27. Rf6 {[%clk 0:01:09.6]} 27... Rf8 {[%clk
0:00:54.8]} 28. Bg5 {[%clk 0:00:36.3]} 28... Qe8 {[%clk 0:00:49.3]} 29. Nc3
{[%clk 0:00:10.5]} 29... h5 {[%clk 0:00:44.3]} 30. Rhf1 {[%clk 0:00:09]} 30...
hxg4 {[%clk 0:00:43.1]} 31. Rxf8+ {[%clk 0:00:03]} 31... Bxf8 {[%clk 0:00:42.6]}
32. Ne2 {[%clk 0:00:03.5]} 32... Rh3 {[%clk 0:00:41.6]} 33. Qc2 {[%clk 0:00:02]}
33... Bxb5 {[%clk 0:00:40.8]} 34. Nf4 {[%clk 0:00:02.5]} 34... Bxf1 {[%clk
0:00:40.3]} 35. Nxg6 {[%clk 0:00:02.5]} 35... Qb5+ {[%clk 0:00:39]} 0-1

[Event "Early-Titled-Tuesday-Blitz-February-20-2024"]
[Site "Chess.com"]
[Date "2024.02.20"]
[Round "11"]
[White "Kotlyar_K"]
[Black "ExchangeAB"]
[Result "0-1"]
[WhiteElo "2568"]
[BlackElo "2464"]
[TimeControl "180+1"]
[EndTime "10:08:32 PST"]
[Termination "ExchangeAB won by resignation"]

1. e4 {[%clk 0:03:00.9]} 1... c6 {[%clk 0:03:00.1]} 2. d4 {[%clk 0:02:58.8]}
2... d5 {[%clk 0:03:01]} 3. e5 {[%clk 0:02:58.5]} 3... Bf5 {[%clk 0:03:00.8]} 4.
h4 {[%clk 0:02:57.8]} 4... h5 {[%clk 0:03:00.5]} 5. c4 {[%clk 0:02:46.6]} 5...
e6 {[%clk 0:03:00.2]} 6. Nc3 {[%clk 0:02:45.6]} 6... Ne7 {[%clk 0:02:59.7]} 7.
Bg5 {[%clk 0:02:41.9]} 7... Qa5 {[%clk 0:02:58.1]} 8. Qd2 {[%clk 0:02:24.5]}
8... dxc4 {[%clk 0:02:56.7]} 9. Bxc4 {[%clk 0:02:22.4]} 9... Nd5 {[%clk
0:02:56.9]} 10. Nge2 {[%clk 0:02:17.3]} 10... Bb4 {[%clk 0:02:52.2]} 11. O-O
{[%clk 0:02:13.2]} 11... Nd7 {[%clk 0:02:47.6]} 12. a3 {[%clk 0:02:12.6]} 12...
Bxc3 {[%clk 0:02:44.9]} 13. bxc3 {[%clk 0:02:13.5]} 13... b5 {[%clk 0:02:31.9]}
14. Bb3 {[%clk 0:01:57.7]} 14... N7b6 {[%clk 0:02:30.4]} 15. Rfc1 {[%clk
0:01:51.3]} 15... O-O {[%clk 0:02:25.2]} 16. Ng3 {[%clk 0:01:47.7]} 16... Bg6
{[%clk 0:02:25.2]} 17. Bxd5 {[%clk 0:01:43]} 17... cxd5 {[%clk 0:02:22]} 18. Qe2
{[%clk 0:01:42.3]} 18... Rfc8 {[%clk 0:02:19]} 19. Bd2 {[%clk 0:01:38.7]} 19...
Nc4 {[%clk 0:02:17.8]} 20. Be1 {[%clk 0:01:39.3]} 20... Qd8 {[%clk 0:02:13.4]}
21. Nxh5 {[%clk 0:01:24.2]} 21... Qxh4 {[%clk 0:02:12.6]} 22. Ng3 {[%clk
0:01:24.4]} 22... Kf8 {[%clk 0:01:53.9]} 23. a4 {[%clk 0:01:22.7]} 23... Ke7
{[%clk 0:01:44.8]} 24. f3 {[%clk 0:01:10.6]} 24... Qh7 {[%clk 0:01:33.6]} 25.
axb5 {[%clk 0:01:05]} 25... Rh8 {[%clk 0:01:27.1]} 26. Ra4 {[%clk 0:00:50.5]}
26... Bd3 {[%clk 0:01:25.2]} 27. Qa2 {[%clk 0:00:44.1]} 27... Qh2+ {[%clk
0:01:22.8]} 28. Kf2 {[%clk 0:00:43.9]} 28... a5 {[%clk 0:01:14.9]} 29. bxa6
{[%clk 0:00:39.6]} 29... Rh3 {[%clk 0:01:11.2]} 30. Nf1 {[%clk 0:00:30.2]} 30...
Bxf1 {[%clk 0:01:11]} 31. Kxf1 {[%clk 0:00:31.1]} 31... Ne3+ {[%clk 0:00:58.5]}
32. Ke2 {[%clk 0:00:19.3]} 32... Qxg2+ {[%clk 0:00:57.3]} 33. Bf2 {[%clk
0:00:14]} 33... Qxf3+ {[%clk 0:00:55]} 34. Ke1 {[%clk 0:00:12.3]} 34... Rh1+
{[%clk 0:00:51.6]} 35. Kd2 {[%clk 0:00:12.9]} 35... Qxf2+ {[%clk 0:00:51.3]} 36.
Kd3 {[%clk 0:00:13.5]} 36... Qxa2 {[%clk 0:00:41.8]} 37. Rxa2 {[%clk 0:00:13.1]}
37... Rxc1 {[%clk 0:00:42]} 38. Kxe3 {[%clk 0:00:13.6]} 38... Rxc3+ {[%clk
0:00:42.1]} 39. Kd2 {[%clk 0:00:13.6]} 39... Rc6 {[%clk 0:00:42.3]} 0-1

[Event "Early-Titled-Tuesday-Blitz-February-20-2024"]
[Site "Chess.com"]
[Date "2024.02.20"]
[Round "11"]
[White "Kildepiotr"]
[Black "ragnaroek66"]
[Result "0-1"]
[WhiteElo "2670"]
[BlackElo "2511"]
[TimeControl "180+1"]
[EndTime "10:08:34 PST"]
[Termination "ragnaroek66 won by resignation"]

1. Nf3 {[%clk 0:02:57.9]} 1... d5 {[%clk 0:02:58.5]} 2. g3 {[%clk 0:02:57.8]}
2... Nd7 {[%clk 0:02:44.2]} 3. Bg2 {[%clk 0:02:57.7]} 3... e5 {[%clk 0:02:44.1]}
4. d3 {[%clk 0:02:58.3]} 4... Bd6 {[%clk 0:02:44]} 5. O-O {[%clk 0:02:58.2]}
5... Ngf6 {[%clk 0:02:44.4]} 6. Nbd2 {[%clk 0:02:58.3]} 6... O-O {[%clk
0:02:44.4]} 7. e4 {[%clk 0:02:58.7]} 7... c6 {[%clk 0:02:45]} 8. a4 {[%clk
0:02:56.3]} 8... a5 {[%clk 0:02:42]} 9. Qe2 {[%clk 0:02:56.3]} 9... Re8 {[%clk
0:02:41.8]} 10. Nb3 {[%clk 0:02:54.8]} 10... Qc7 {[%clk 0:02:39.2]} 11. Nh4
{[%clk 0:02:53.1]} 11... Bf8 {[%clk 0:02:36.6]} 12. Nf5 {[%clk 0:02:52.1]} 12...
Nc5 {[%clk 0:02:11.5]} 13. Nxc5 {[%clk 0:02:50.2]} 13... Bxc5 {[%clk 0:02:12.4]}
14. Qf3 {[%clk 0:02:38.4]} 14... Kh8 {[%clk 0:02:01.1]} 15. Bg5 {[%clk
0:02:27.4]} 15... dxe4 {[%clk 0:02:00]} 16. dxe4 {[%clk 0:02:21.4]} 16... Ng8
{[%clk 0:01:59.9]} 17. Rad1 {[%clk 0:02:16.4]} 17... Be6 {[%clk 0:01:54.6]} 18.
b3 {[%clk 0:01:55.9]} 18... f6 {[%clk 0:01:50.2]} 19. Bc1 {[%clk 0:01:44.1]}
19... b5 {[%clk 0:01:45.8]} 20. h4 {[%clk 0:01:38.7]} 20... bxa4 {[%clk
0:01:26.1]} 21. bxa4 {[%clk 0:01:39.6]} 21... Rab8 {[%clk 0:01:26.6]} 22. h5
{[%clk 0:01:37]} 22... g6 {[%clk 0:01:06]} 23. Nh4 {[%clk 0:01:01.8]} 23... Kg7
{[%clk 0:00:55]} 24. Kh2 {[%clk 0:00:52.3]} 24... Qc8 {[%clk 0:00:44.6]} 25. Qe2
{[%clk 0:00:33]} 25... Rb4 {[%clk 0:00:38.2]} 26. f4 {[%clk 0:00:28.4]} 26...
exf4 {[%clk 0:00:31.7]} 27. Rxf4 {[%clk 0:00:22.7]} 27... g5 {[%clk 0:00:25.8]}
28. Nf5+ {[%clk 0:00:22.1]} 28... Bxf5 {[%clk 0:00:26]} 29. Rxf5 {[%clk
0:00:10.9]} 29... Qxf5 {[%clk 0:00:25.7]} 30. Bh3 {[%clk 0:00:10.3]} 30... Qxe4
{[%clk 0:00:23.4]} 31. Rd7+ {[%clk 0:00:09.8]} 31... Re7 {[%clk 0:00:18.2]} 0-1

[Event "Early-Titled-Tuesday-Blitz-February-20-2024"]
[Site "Chess.com"]
[Date "2024.02.20"]
[Round "11"]
[White "wonderfultime"]
[Black "snowlord"]
[Result "0-1"]
[WhiteElo "3036"]
[BlackElo "2903"]
[TimeControl "180+1"]
[EndTime "10:08:36 PST"]
[Termination "snowlord won by resignation"]

1. d4 {[%clk 0:03:00.9]} 1... Nf6 {[%clk 0:02:53]} 2. Nf3 {[%clk 0:03:00.6]}
2... e6 {[%clk 0:02:51.7]} 3. Bf4 {[%clk 0:03:00.8]} 3... b6 {[%clk 0:02:50.2]}
4. e3 {[%clk 0:03:00.1]} 4... Bb7 {[%clk 0:02:50.9]} 5. c4 {[%clk 0:03:00.7]}
5... Bb4+ {[%clk 0:02:43.9]} 6. Nfd2 {[%clk 0:03:01.3]} 6... O-O {[%clk
0:02:41.8]} 7. a3 {[%clk 0:03:01.1]} 7... Bd6 {[%clk 0:02:41.8]} 8. Bg5 {[%clk
0:02:53.1]} 8... Be7 {[%clk 0:02:38.5]} 9. Nc3 {[%clk 0:02:53.3]} 9... c5 {[%clk
0:02:37.1]} 10. dxc5 {[%clk 0:02:18.9]} 10... bxc5 {[%clk 0:02:38]} 11. Bd3
{[%clk 0:02:19.4]} 11... h6 {[%clk 0:02:32.4]} 12. Bf4 {[%clk 0:02:15.9]} 12...
d5 {[%clk 0:02:08.8]} 13. Qe2 {[%clk 0:01:47.4]} 13... d4 {[%clk 0:02:04.3]} 14.
exd4 {[%clk 0:01:45.2]} 14... Nc6 {[%clk 0:01:30.8]} 15. O-O {[%clk 0:01:22.5]}
15... Nxd4 {[%clk 0:01:30.8]} 16. Qd1 {[%clk 0:01:23.2]} 16... a5 {[%clk
0:01:20.7]} 17. Re1 {[%clk 0:01:17.4]} 17... Ra6 {[%clk 0:01:16]} 18. Bf1 {[%clk
0:01:11.2]} 18... Bd6 {[%clk 0:01:12.8]} 19. Be3 {[%clk 0:01:07.1]} 19... Bb8
{[%clk 0:01:12.3]} 20. Nb5 {[%clk 0:01:01.7]} 20... Re8 {[%clk 0:00:52.3]} 21.
Nb3 {[%clk 0:00:51.4]} 21... Nxb3 {[%clk 0:00:45]} 22. Qxb3 {[%clk 0:00:52.3]}
22... Ng4 {[%clk 0:00:39.1]} 23. h3 {[%clk 0:00:50.3]} 23... a4 {[%clk
0:00:28.3]} 24. Qc3 {[%clk 0:00:41.1]} 24... Qh4 {[%clk 0:00:25.1]} 25. Bxc5
{[%clk 0:00:37.8]} 25... Rc8 {[%clk 0:00:18.9]} 26. Bd4 {[%clk 0:00:19.4]} 26...
Bh2+ {[%clk 0:00:18]} 27. Kh1 {[%clk 0:00:19.3]} 27... Bb8 {[%clk 0:00:18.9]}
28. Kg1 {[%clk 0:00:12.6]} 28... Bh2+ {[%clk 0:00:17.9]} 29. Kh1 {[%clk
0:00:13.3]} 29... Bb8 {[%clk 0:00:18.8]} 30. Qd2 {[%clk 0:00:08.3]} 30... Qxh3+
{[%clk 0:00:16.6]} 0-1

[Event "Early-Titled-Tuesday-Blitz-February-20-2024"]
[Site "Chess.com"]
[Date "2024.02.20"]
[Round "11"]
[White "zurzan"]
[Black "aldebaran52"]
[Result "0-1"]
[WhiteElo "2063"]
[BlackElo "2186"]
[TimeControl "180+1"]
[EndTime "10:08:37 PST"]
[Termination "aldebaran52 won by resignation"]

1. c4 {[%clk 0:02:53.7]} 1... c5 {[%clk 0:02:56.6]} 2. Nc3 {[%clk 0:02:53.3]}
2... e5 {[%clk 0:02:54.9]} 3. g3 {[%clk 0:02:54.2]} 3... g6 {[%clk 0:02:54.5]}
4. Bg2 {[%clk 0:02:54.6]} 4... Bg7 {[%clk 0:02:54.9]} 5. d3 {[%clk 0:02:54.4]}
5... d6 {[%clk 0:02:55.3]} 6. e4 {[%clk 0:02:54.2]} 6... Ne7 {[%clk 0:02:55.4]}
7. Nge2 {[%clk 0:02:54.6]} 7... Nbc6 {[%clk 0:02:55.8]} 8. O-O {[%clk
0:02:54.8]} 8... O-O {[%clk 0:02:56.5]} 9. a3 {[%clk 0:02:53.5]} 9... a5 {[%clk
0:02:54.2]} 10. Rb1 {[%clk 0:02:53.3]} 10... Be6 {[%clk 0:02:53.7]} 11. b3
{[%clk 0:02:52.8]} 11... Qd7 {[%clk 0:02:49.7]} 12. Nd5 {[%clk 0:02:51.6]} 12...
Bxd5 {[%clk 0:02:43.2]} 13. cxd5 {[%clk 0:02:46.9]} 13... Nd8 {[%clk 0:02:40]}
14. f4 {[%clk 0:02:43]} 14... f5 {[%clk 0:02:29.6]} 15. fxe5 {[%clk 0:02:40]}
15... dxe5 {[%clk 0:02:25.1]} 16. b4 {[%clk 0:02:29.3]} 16... axb4 {[%clk
0:02:23.2]} 17. axb4 {[%clk 0:02:29.1]} 17... cxb4 {[%clk 0:02:15.6]} 18. Rxb4
{[%clk 0:02:28.8]} 18... Nf7 {[%clk 0:02:16.3]} 19. Qb3 {[%clk 0:02:27.1]} 19...
Nd6 {[%clk 0:02:15.5]} 20. Ba3 {[%clk 0:02:14.8]} 20... Rad8 {[%clk 0:02:04]}
21. Rc1 {[%clk 0:02:10.6]} 21... f4 {[%clk 0:01:58.5]} 22. gxf4 {[%clk
0:02:03.2]} 22... exf4 {[%clk 0:01:55.8]} 23. Nd4 {[%clk 0:02:03]} 23... Bxd4+
{[%clk 0:01:41.6]} 24. Rxd4 {[%clk 0:02:02]} 24... f3 {[%clk 0:01:42.3]} 25. Bf1
{[%clk 0:01:42.9]} 25... Qg4+ {[%clk 0:01:18]} 26. Kf2 {[%clk 0:01:41.9]} 26...
Nef5 {[%clk 0:01:06.4]} 27. Bxd6 {[%clk 0:01:23.2]} 27... Nxd4 {[%clk
0:00:52.9]} 28. Qb4 {[%clk 0:01:13.9]} 28... Ne2 {[%clk 0:00:28.1]} 29. Bg3
{[%clk 0:01:03.5]} 29... Nxc1 {[%clk 0:00:26.1]} 30. Qd4 {[%clk 0:00:59.8]}
30... Ne2 {[%clk 0:00:24.7]} 31. Qe3 {[%clk 0:00:51.1]} 31... Nxg3 {[%clk
0:00:24.7]} 32. hxg3 {[%clk 0:00:51.2]} 32... h5 {[%clk 0:00:23.9]} 33. d4
{[%clk 0:00:47.6]} 33... Ra8 {[%clk 0:00:23.6]} 34. e5 {[%clk 0:00:46.1]} 34...
Ra2+ {[%clk 0:00:23.4]} 35. Ke1 {[%clk 0:00:43.4]} 35... Qxg3+ {[%clk
0:00:23.2]} 36. Kd1 {[%clk 0:00:43.2]} 36... Qg4 {[%clk 0:00:17.1]} 37. Kc1
{[%clk 0:00:36.4]} 37... f2 {[%clk 0:00:16.3]} 38. Bd3 {[%clk 0:00:33.3]} 38...
Qg1+ {[%clk 0:00:15.7]} 0-1